Workbook

Sheet prob
C1: The Hypergeometric Distribution
B3: This DIGMath module lets you explore
C4: the hypergeometric distribution
C5: based on samples of size n
C6: drawn without replacement
C7: from a population of size N
C8: where K of the N represent success
C9: and calculates hypergeometric probabilities
A12: How large is the population N (10 - 100)?
D13: =E13 -> 47 | E13: 47
A15: How many successes K out of N = | E15: =D13 -> 47 | F15: ?
D16: =IF(E16<=trials,E16,trials) -> 36 | E16: 36
J17: How many successes do you want: x = ?
A18: How large is the sample n? | L18: ="(Between "&Min &" and " & Max &")" -> (Between 12 and 23)
D19: =IF(E19<=trials,E19+1,trials) -> 23 | E19: 22 | M19: =IF(O19<=n,O19,n) -> 20 | N19: 14 | O19: 20
K21: The probability of getting x = | N21: =x -> 20 | O21: =IF(x=1,"success","successes") -> successes
M23: out of n = | N23: =n -> 23 | O23: trials
A25: Click each item below for suggestions and investigations | J25: from a hypergeometric distribution with N = | O25: =NN -> 47 | P25: values,
C26: Item 1
C27: Item 2 | K27: of which | L27: =k -> 36 | M27: are considered successes,
C28: Item 3
L29: is Probability = | M29: =pp -> 0.0748
A32: To access/download all the DIGMath Apps for Statistics
A33: Click this link: | C33: DIGMath for Statistics and Probability
A35: Created by: Sheldon P. Gordon & Florence S. Gordon © 2025
A36: Farmingdale State College NYIT
A37: Development of this module was supported by the
A38: NSF's Division of Undergraduate Education
A39: under grants DUE-0310123 and DUE-0442160.

Sheet Sheet2
C1: x | D1: PROB | F1: n | I1: Points | L1: Points for filling column
C2: 1 | D2: =IF(C2<=L,COMBIN(k,C2)*COMBIN(NN-k,n-C2)/COMBIN(NN,n),0) ->  | F2: 0 | I2: 0 | J2: 0 | L2: =x -> 20.00 | M2: 0
A3: Min = | B3: =IF(n+k-trials<0,0,n+k-trials) -> 12 | C3: 2 | F3: 1 | G3: =k/trials -> 0.7659574468 | H3: = p | I3: 0 | J3: =D2 ->  | L3: =L2 -> 20.00 | M3: =LOOKUP(x,C2:C102,D2:D102) -> 0.07478378301 | N3: = pp
A4: Max = | B4: =IF(n<k,n,k) -> 23 | C4: 3 | F4: 2 | G4: =1-_xlfn.SINGLE(p) -> 0.2340425532 | H4: = q | I4: =F3 -> 1 | J4: =J3 ->  | L4: =L3+0.05 -> 20.05 | M4: 0
C5: 4 | F5: =IF(F4<trials,F4+1,trials) -> 3 | G5: 1 | H5: = c0 | I5: =I4 -> 1 | J5: =0 -> 0.0000000 | L5: =L4 -> 20.05 | M5: =pp -> 0.07478378301
A6: L = | B6: =IF(n<=NN, n,NN-n) -> 23 | C6: 5 | F6: 4 | I6: =I5 -> 1 | J6: =D3 ->  | L6: =L5+0.05 -> 20.10 | M6: 0
C7: 6 | F7: 5 | I7: =I6+1 -> 2 | J7: =J6 ->  | L7: =L6 -> 20.10 | M7: =pp -> 0.07478378301
A8: p3= | C8: 7 | F8: 6 | I8: =I7 -> 2 | J8: 0.0000000 | L8: =L7+0.05 -> 20.15 | M8: 0
C9: 8 | F9: 7 | I9: =I8 -> 2 | J9: =D4 ->  | L9: =L8 -> 20.15 | M9: =pp -> 0.07478378301
C10: 9 | F10: 8 | I10: =IF(I9<=trials,I9+1,trials) -> 3 | J10: =J9 ->  | L10: =L9+0.05 -> 20.20 | M10: 0
C11: 10 | F11: 9 | I11: =I10 -> 3 | J11: 0.0000000 | L11: =L10 -> 20.20 | M11: =pp -> 0.07478378301
C12: 11 | F12: 10 | I12: =I11 -> 3 | J12: =D5 ->  | L12: =L11+0.05 -> 20.25 | M12: 0
C13: 12 | D13: 7.762919145e-05 | F13: 11 | I13: =IF(I12<=trials,I12+1,trials) -> 4 | J13: =J12 ->  | L13: =L12 -> 20.25 | M13: =pp -> 0.07478378301
C14: 13 | D14: 0.001576469734 | F14: 12 | I14: =I13 -> 4 | J14: 0.0000000 | L14: =L13+0.05 -> 20.30 | M14: 0
C15: 14 | D15: 0.01294957281 | F15: 13 | I15: =I14 -> 4 | J15: =D6 ->  | L15: =L14 -> 20.30 | M15: =pp -> 0.07478378301
C16: 15 | D16: 0.05697812039 | F16: 14 | I16: =IF(I15<=trials,I15+1,trials) -> 5 | J16: =J15 ->  | L16: =L15+0.05 -> 20.35 | M16: 0
C17: 16 | D17: 0.149567566 | F17: 15 | I17: =I16 -> 5 | J17: 0.0000000 | L17: =L16 -> 20.35 | M17: =pp -> 0.07478378301
C18: 17 | D18: 0.2463465793 | F18: 16 | I18: =I17 -> 5 | J18: =D7 ->  | L18: =L17+0.05 -> 20.40 | M18: 0
C19: 18 | D19: 0.2600325004 | F19: 17 | I19: =IF(I18<=trials,I18+1,trials) -> 6 | J19: =J18 ->  | L19: =L18 -> 20.40 | M19: =pp -> 0.07478378301
C20: 19 | D20: 0.1759618424 | F20: 18 | I20: =I19 -> 6 | J20: 0.0000000 | L20: =L19+0.05 -> 20.45 | M20: 0
C21: 20 | D21: 0.07478378301 | F21: 19 | I21: =I20 -> 6 | J21: =D8 ->  | L21: =L20 -> 20.45 | M21: =pp -> 0.07478378301
C22: 21 | D22: 0.0189927068 | F22: 20 | I22: =IF(I21<=trials,I21+1,trials) -> 7 | J22: =J21 ->  | L22: =L21+0.05 -> 20.50 | M22: 0
C23: 22 | D23: 0.002589914563 | F23: 21 | I23: =I22 -> 7 | J23: 0.0000000 | L23: =L22 -> 20.50 | M23: =pp -> 0.07478378301
C24: 23 | D24: 0.0001433154304 | F24: 22 | I24: =I23 -> 7 | J24: =D9 ->  | L24: =L23+0.05 -> 20.55 | M24: 0
C25: 24 | D25: 0 | F25: 23 | I25: =IF(I24<=trials,I24+1,trials) -> 8 | J25: =J24 ->  | L25: =L24 -> 20.55 | M25: =pp -> 0.07478378301
C26: 25 | D26: 0 | F26: 24 | I26: =I25 -> 8 | J26: 0.0000000 | L26: =L25+0.05 -> 20.60 | M26: 0
C27: 26 | D27: 0 | F27: 25 | I27: =I26 -> 8 | J27: =D10 ->  | L27: =L26 -> 20.60 | M27: =pp -> 0.07478378301
C28: 27 | D28: 0 | F28: 26 | I28: =IF(I27<=trials,I27+1,trials) -> 9 | J28: =J27 ->  | L28: =L27+0.05 -> 20.65 | M28: 0
C29: 28 | D29: 0 | F29: 27 | I29: =I28 -> 9 | J29: 0.0000000 | L29: =L28 -> 20.65 | M29: =pp -> 0.07478378301
C30: 29 | D30: 0 | F30: 28 | I30: =I29 -> 9 | J30: =D11 ->  | L30: =L29+0.05 -> 20.70 | M30: 0
C31: 30 | D31: 0 | F31: 29 | I31: =IF(I30<=trials,I30+1,trials) -> 10 | J31: =J30 ->  | L31: =L30 -> 20.70 | M31: =pp -> 0.07478378301
C32: 31 | D32: 0 | F32: 30 | I32: =I31 -> 10 | J32: 0.0000000 | L32: =L31+0.05 -> 20.75 | M32: 0
C33: 32 | D33: 0 | F33: 31 | I33: =I32 -> 10 | J33: =D12 ->  | L33: =L32 -> 20.75 | M33: =pp -> 0.07478378301
C34: 33 | D34: =IF(C34<=L,COMBIN(k,C34)*COMBIN(NN-k,n-C34)/COMBIN(NN,n),0) -> 0 | F34: 32 | I34: =IF(I33<=trials,I33+1,trials) -> 11 | J34: =J33 ->  | L34: =L33+0.05 -> 20.80 | M34: 0
C35: 34 | D35: 0 | F35: 33 | I35: =I34 -> 11 | J35: 0.0000000 | L35: =L34 -> 20.80 | M35: =pp -> 0.07478378301
C36: 35 | D36: 0 | F36: 34 | I36: =I35 -> 11 | J36: =D13 -> 0.0000776 | L36: =L35+0.05 -> 20.85 | M36: 0
C37: 36 | D37: 0 | F37: =IF(F36<trials,F36+1,trials) -> 35 | I37: =IF(I36<=trials,I36+1,trials) -> 12 | J37: =J36 -> 0.0000776 | L37: =L36 -> 20.85 | M37: =pp -> 0.07478378301
C38: 37 | D38: 0 | F38: 36 | I38: =I37 -> 12 | J38: 0.0000000 | L38: =L37+0.05 -> 20.90 | M38: 0
C39: 38 | D39: 0 | F39: 37 | I39: =I38 -> 12 | J39: =D14 -> 0.0015765 | L39: =L38 -> 20.90 | M39: =pp -> 0.07478378301
C40: 39 | D40: 0 | F40: 38 | I40: =IF(I39<=trials,I39+1,trials) -> 13 | J40: =J39 -> 0.0015765 | L40: =L39+0.05 -> 20.95 | M40: 0
C41: 40 | D41: 0 | F41: 39 | I41: =I40 -> 13 | J41: 0.0000000 | L41: =L40 -> 20.95 | M41: =pp -> 0.07478378301
C42: 41 | D42: 0 | F42: 40 | I42: =I41 -> 13 | J42: =D15 -> 0.0129496 | L42: =L41+0.05 -> 21.00 | M42: 0
C43: 42 | D43: 0 | F43: 41 | I43: =IF(I42<=trials,I42+1,trials) -> 14 | J43: =J42 -> 0.0129496 | L43: =L42 -> 21.00 | M43: =pp -> 0.07478378301
C44: 43 | D44: 0 | F44: 42 | I44: =I43 -> 14 | J44: 0.0000000
C45: 44 | D45: 0 | F45: 43 | I45: =I44 -> 14 | J45: =D16 -> 0.0569781
C46: 45 | D46: 0 | F46: 44 | I46: =IF(I45<=trials,I45+1,trials) -> 15 | J46: =J45 -> 0.0569781
C47: 46 | D47: 0 | F47: 45 | I47: =I46 -> 15 | J47: 0.0000000
C48: 47 | D48: 0 | F48: 46 | I48: =I47 -> 15 | J48: =D17 -> 0.1495676
C49: 48 | D49: 0 | F49: 47 | I49: =IF(I48<=trials,I48+1,trials) -> 16 | J49: =J48 -> 0.1495676
C50: 49 | D50: 0 | F50: 47 | I50: =I49 -> 16 | J50: 0.0000000
C51: 49 | D51: 0 | F51: 47 | I51: =I50 -> 16 | J51: =D18 -> 0.2463466
D52: =IF(F52<=Max,$P$3*(trials-L+F52)/F52,0) -> 0 | F52: 47 | I52: =IF(I51<=trials,I51+1,trials) -> 17 | J52: =J51 -> 0.2463466
D53: 0 | F53: 47 | I53: =I52 -> 17 | J53: 0.0000000
D54: 0 | F54: 47 | I54: =I53 -> 17 | J54: =D19 -> 0.2600325
D55: 0 | F55: 47 | I55: =IF(I54<=trials,I54+1,trials) -> 18 | J55: =J54 -> 0.2600325
D56: 0 | F56: 47 | I56: =I55 -> 18 | J56: 0.0000000
D57: 0 | F57: 47 | I57: =I56 -> 18 | J57: =D20 -> 0.1759618
D58: 0 | F58: 47 | I58: =IF(I57<=trials,I57+1,trials) -> 19 | J58: =J57 -> 0.1759618
D59: 0 | F59: 47 | I59: =I58 -> 19 | J59: 0.0000000
D60: 0 | F60: 47 | I60: =I59 -> 19 | J60: =D21 -> 0.0747838
D61: 0 | F61: 47 | I61: =IF(I60<=trials,I60+1,trials) -> 20 | J61: =J60 -> 0.0747838
D62: 0 | F62: 47 | I62: =I61 -> 20 | J62: 0.0000000
D63: 0 | F63: 47 | I63: =I62 -> 20 | J63: =D22 -> 0.0189927
D64: 0 | F64: 47 | I64: =IF(I63<=trials,I63+1,trials) -> 21 | J64: =J63 -> 0.0189927
D65: 0 | F65: 47 | I65: =I64 -> 21 | J65: 0.0000000
D66: 0 | F66: 47 | I66: =I65 -> 21 | J66: =D23 -> 0.0025899
D67: 0 | F67: 47 | I67: =IF(I66<=trials,I66+1,trials) -> 22 | J67: =J66 -> 0.0025899
D68: 0 | F68: 47 | I68: =I67 -> 22 | J68: 0.0000000
D69: 0 | F69: =IF(F68<trials,F68+1,trials) -> 47 | I69: =I68 -> 22 | J69: =D24 -> 0.0001433
D70: 0 | F70: 47 | I70: =IF(I69<=trials,I69+1,trials) -> 23 | J70: =J69 -> 0.0001433
D71: 0 | F71: 47 | I71: =I70 -> 23 | J71: 0.0000000
D72: 0 | F72: 47 | I72: =I71 -> 23 | J72: =D25 -> 0.0000000
D73: 0 | F73: 47 | I73: =IF(I72<=trials,I72+1,trials) -> 24 | J73: =J72 -> 0.0000000
D74: 0 | F74: 47 | I74: =I73 -> 24 | J74: 0.0000000
D75: 0 | F75: 47 | I75: =I74 -> 24 | J75: =D26 -> 0.0000000
D76: 0 | F76: 47 | I76: =IF(I75<=trials,I75+1,trials) -> 25 | J76: =J75 -> 0.0000000
D77: 0 | F77: 47 | I77: =I76 -> 25 | J77: 0.0000000
D78: 0 | F78: 47 | I78: =I77 -> 25 | J78: =D27 -> 0.0000000
D79: 0 | F79: 47 | I79: =IF(I78<=trials,I78+1,trials) -> 26 | J79: =J78 -> 0.0000000
D80: 0 | F80: 47 | I80: =I79 -> 26 | J80: 0.0000000
D81: 0 | F81: 47 | I81: =I80 -> 26 | J81: =D28 -> 0.0000000
D82: 0 | F82: 47 | I82: =IF(I81<=trials,I81+1,trials) -> 27 | J82: =J81 -> 0.0000000
D83: 0 | F83: 47 | I83: =I82 -> 27 | J83: 0.0000000
D84: =IF(F84<=Max,$P$3*(trials-L+F84)/F84,0) -> 0 | F84: 47 | I84: =I83 -> 27 | J84: =D29 -> 0.0000000
D85: 0 | F85: 47 | I85: =IF(I84<=trials,I84+1,trials) -> 28 | J85: =J84 -> 0.0000000
D86: 0 | F86: 47 | I86: =I85 -> 28 | J86: 0.0000000
D87: 0 | F87: 47 | I87: =I86 -> 28 | J87: =D30 -> 0.0000000
D88: 0 | F88: 47 | I88: =IF(I87<=trials,I87+1,trials) -> 29 | J88: =J87 -> 0.0000000
D89: 0 | F89: 47 | I89: =I88 -> 29 | J89: =D31 -> 0.0000000
D90: 0 | F90: 47 | I90: =I89 -> 29 | J90: =D31 -> 0.0000000
D91: 0 | F91: 47 | I91: =IF(I90<=trials,I90+1,trials) -> 30 | J91: =J90 -> 0.0000000
D92: 0 | F92: 47 | I92: =I91 -> 30 | J92: =D32 -> 0.0000000
D93: 0 | F93: 47 | I93: =I92 -> 30 | J93: =D32 -> 0.0000000
D94: 0 | F94: 47 | I94: =IF(I93<=trials,I93+1,trials) -> 31 | J94: =J93 -> 0.0000000
D95: 0 | F95: 47 | I95: =I94 -> 31 | J95: =D33 -> 0.0000000
D96: 0 | F96: 47 | I96: =I95 -> 31 | J96: =D33 -> 0.0000000
D97: 0 | F97: 47 | I97: =IF(I96<=trials,I96+1,trials) -> 32 | J97: =J96 -> 0.0000000
D98: 0 | F98: 47 | I98: =I97 -> 32 | J98: =D34 -> 0.0000000
D99: 0 | F99: 47 | I99: =I98 -> 32 | J99: =D34 -> 0.0000000
D100: 0 | F100: 47 | I100: =IF(I99<=trials,I99+1,trials) -> 33 | J100: =J99 -> 0.0000000
D101: 0 | F101: 47 | I101: =I100 -> 33 | J101: =D35 -> 0.0000000
D102: 0 | F102: 47 | I102: =I101 -> 33 | J102: =D35 -> 0.0000000
D103: 0 | F103: 47 | I103: =IF(I102<=trials,I102+1,trials) -> 34 | J103: =J102 -> 0.0000000
D104: 0 | F104: 47 | I104: =I103 -> 34 | J104: =D36 -> 0.0000000
D105: 0 | F105: 47 | I105: =I104 -> 34 | J105: =D36 -> 0.0000000
D106: 0 | F106: 47 | I106: =IF(I105<=trials,I105+1,trials) -> 35 | J106: =J105 -> 0.0000000
D107: 0 | F107: 47 | I107: =I106 -> 35 | J107: =D37 -> 0.0000000
D108: 0 | F108: 47 | I108: =I107 -> 35 | J108: =D37 -> 0.0000000
D109: 0 | F109: 47 | I109: =IF(I108<=trials,I108+1,trials) -> 36 | J109: =J108 -> 0.0000000
D110: 0 | F110: 47 | I110: =I109 -> 36 | J110: =D38 -> 0.0000000
D111: 0 | F111: 47 | I111: =I110 -> 36 | J111: =D38 -> 0.0000000
D112: 0 | F112: 47 | I112: =IF(I111<=trials,I111+1,trials) -> 37 | J112: =J111 -> 0.0000000
D113: 0 | F113: 47 | I113: =I112 -> 37 | J113: =D39 -> 0.0000000
D114: 0 | F114: 47 | I114: =I113 -> 37 | J114: =D39 -> 0.0000000
D115: 0 | F115: 47 | I115: =IF(I114<=trials,I114+1,trials) -> 38 | J115: =J114 -> 0.0000000
D116: =IF(F116<=Max,$P$3*(trials-L+F116)/F116,0) -> 0 | F116: 47 | I116: =I115 -> 38 | J116: =D40 -> 0.0000000
D117: 0 | F117: 47 | I117: =I116 -> 38 | J117: =D40 -> 0.0000000
D118: 0 | F118: 47 | I118: =IF(I117<=trials,I117+1,trials) -> 39 | J118: =J117 -> 0.0000000
D119: 0 | F119: 47 | I119: =I118 -> 39 | J119: =D41 -> 0.0000000
D120: 0 | F120: 47 | I120: =I119 -> 39 | J120: =D41 -> 0.0000000
D121: 0 | F121: 47 | I121: =IF(I120<=trials,I120+1,trials) -> 40 | J121: =J120 -> 0.0000000
D122: 0 | F122: 47 | I122: =I121 -> 40 | J122: =D42 -> 0.0000000
D123: 0 | F123: 47 | I123: =I122 -> 40 | J123: =D42 -> 0.0000000
D124: 0 | F124: 47 | I124: =IF(I123<=trials,I123+1,trials) -> 41 | J124: =J123 -> 0.0000000
D125: 0 | F125: 47 | I125: =I124 -> 41 | J125: =D43 -> 0.0000000
D126: 0 | F126: 47 | I126: =I125 -> 41 | J126: =D43 -> 0.0000000
D127: 0 | F127: 47 | I127: =IF(I126<=trials,I126+1,trials) -> 42 | J127: =J126 -> 0.0000000
D128: 0 | F128: 47 | I128: =I127 -> 42 | J128: =D44 -> 0.0000000
D129: 0 | F129: 47 | I129: =I128 -> 42 | J129: =D44 -> 0.0000000
D130: 0 | F130: 47 | I130: =IF(I129<=trials,I129+1,trials) -> 43 | J130: =J129 -> 0.0000000
D131: 0 | F131: 47 | I131: =I130 -> 43 | J131: =D45 -> 0.0000000
D132: 0 | F132: 47 | I132: =I131 -> 43 | J132: =D45 -> 0.0000000
D133: 0 | F133: =IF(F132<trials,F132+1,trials) -> 47 | I133: =IF(I132<=trials,I132+1,trials) -> 44 | J133: =J132 -> 0.0000000
D134: 0 | F134: 47 | I134: =I133 -> 44 | J134: =D46 -> 0.0000000
D135: 0 | F135: 47 | I135: =I134 -> 44 | J135: =D46 -> 0.0000000
D136: 0 | F136: 47 | I136: =IF(I135<=trials,I135+1,trials) -> 45 | J136: =J135 -> 0.0000000
D137: 0 | F137: 47 | I137: =I136 -> 45 | J137: =D47 -> 0.0000000
D138: 0 | F138: 47 | I138: =I137 -> 45 | J138: =D47 -> 0.0000000
D139: 0 | F139: 47 | I139: =IF(I138<=trials,I138+1,trials) -> 46 | J139: =J138 -> 0.0000000
D140: 0 | F140: 47 | I140: =I139 -> 46 | J140: =D48 -> 0.0000000
D141: 0 | F141: 47 | I141: =I140 -> 46 | J141: =D48 -> 0.0000000
D142: 0 | F142: 47 | I142: =IF(I141<=trials,I141+1,trials) -> 47 | J142: =J141 -> 0.0000000
D143: 0 | F143: 47 | I143: =I142 -> 47 | J143: =D49 -> 0.0000000
D144: 0 | F144: 47 | I144: =I143 -> 47 | J144: =D49 -> 0.0000000
D145: 0 | F145: 47 | I145: =IF(I144<=trials,I144+1,trials) -> 48 | J145: =J144 -> 0.0000000
D146: 0 | F146: 47 | I146: =I145 -> 48 | J146: =D50 -> 0.0000000
D147: 0 | F147: 47 | I147: =I146 -> 48 | J147: =D50 -> 0.0000000
D148: =IF(F148<=Max,$P$3*(trials-L+F148)/F148,0) -> 0 | F148: 47 | I148: =IF(I147<=trials,I147+1,trials) -> 47 | J148: =J147 -> 0.0000000
D149: 0 | F149: 47 | I149: =I148 -> 47 | J149: =D51 -> 0.0000000
D150: 0 | F150: 47 | I150: =I149 -> 47 | J150: =D51 -> 0.0000000
D151: 0 | F151: 47 | I151: =IF(I150<=trials,I150+1,trials) -> 48 | J151: =J150 -> 0.0000000
D152: 0 | F152: 47 | I152: =I151 -> 48 | J152: 0.0000000
D153: 0 | F153: 47 | I153: =I152 -> 48 | J153: =D52 -> 0.0000000
D154: 0 | F154: 47 | I154: =IF(I153<=trials,I153+1,trials) -> 47 | J154: =J153 -> 0.0000000
D155: 0 | F155: 47 | I155: =I154 -> 47 | J155: 0.0000000
D156: 0 | F156: 47 | I156: =I155 -> 47 | J156: =D53 -> 0.0000000
D157: 0 | F157: 47 | I157: =IF(I156<=trials,I156+1,trials) -> 48 | J157: =J156 -> 0.0000000
D158: 0 | F158: 47 | I158: =I157 -> 48 | J158: 0.0000000
D159: 0 | F159: 47 | I159: =I158 -> 48 | J159: =D54 -> 0.0000000
D160: 0 | F160: 47 | I160: =IF(I159<=trials,I159+1,trials) -> 47 | J160: =J159 -> 0.0000000
D161: 0 | F161: 47 | I161: =I160 -> 47 | J161: 0.0000000

Sheet Sheet3

Sheet Sheet4
